bitfinex-derivatives/quotes_SOLF0:USTF0_20240923
["timestamp","ask_amount","ask_price","bid_price","bid_amount"]
[1727117979342,9.61,144.04,143.99,9.61]
[1727117980152,9.61,144.04,144.03,3.4713]
[1727117980542,9.61,144.04,144.02,3.4714]
[1727117980847,9.61,144.03,143.98,1.355]
[1727117981050,9.61,144.02,143.98,1.355]
[1727117981750,9.61,144.02,144.01,3.4716]
[1727117982854,9.61,144.03,144.02,3.4715]
[1727117983757,9.61,144.04,144.03,3.4712]
[1727117983949,9.61,144.04,144.0,9.61]
[1727117984551,9.61,144.04,144.02,3.4713]
[1727117989347,9.61,144.03,144.01,3.4716]
[1727117989951,9.61,144.03,144.02,3.4715]
[1727117995462,9.61,144.03,144.01,3.4716]
[1727117998660,9.61,144.02,144.0,3.4719]
[1727117999766,9.61,144.01,143.95,9.61]
[1727118000265,9.61,144.01,143.99,3.4722]
[1727118000463,9.61,144.01,143.93,4.1483]
[1727118000662,9.61,143.97,143.93,4.1483]
[1727118000868,9.61,143.97,143.93,2.7636]
[1727118001057,9.61,143.95,143.89,1.3847]
[1727118001257,4.1881,144.03,143.89,4.1483]
[1727118001258,9.61,143.94,143.89,4.1483]
[1727118001765,9.61,143.94,143.91,3.474]
[1727118001953,4.1881,144.03,143.91,9.61]
[1727118002266,4.1881,144.03,143.89,4.1483]
[1727118002267,9.61,144.0,143.96,3.4729]
[1727118002466,9.61,144.0,143.95,9.61]
[1727118003061,9.61,144.0,143.96,3.4728]
[1727118003269,9.61,143.97,143.92,9.61]
[1727118003463,9.61,143.96,143.93,3.4735]
[1727118004065,9.61,143.96,143.89,4.1483]
[1727118004367,9.61,143.95,143.9,9.61]
[1727118004569,9.61,143.95,143.93,3.4736]
[1727118004970,9.61,143.95,143.89,4.1483]
[1727118005174,9.61,143.94,143.89,4.1483]
[1727118005781,9.61,143.94,143.92,3.4738]
[1727118005974,9.61,143.96,143.92,9.61]
[1727118006376,4.1881,144.03,143.96,3.473]
[1727118006574,9.61,143.98,143.96,3.473]
[1727118006875,9.61,143.97,143.93,9.61]
[1727118007078,9.61,143.97,143.92,9.61]
[1727118007478,9.61,143.94,143.89,12.3736]
[1727118007680,9.61,143.93,143.89,2.7636]
[1727118007878,9.61,143.93,143.92,3.4738]
[1727118009279,9.61,143.93,143.86,1.3683]
[1727118009487,9.61,143.91,143.87,9.61]
[1727118009685,9.61,143.91,143.89,3.4745]
[1727118010390,15.01,143.93,143.89,3.4745]
[1727118010780,15.01,143.93,143.9,3.4743]
[1727118010980,15.01,143.93,143.86,1.3683]
[1727118011170,15.01,144.02,143.88,15.01]
[1727118011171,15.01,143.97,143.88,15.01]
[1727118011371,15.01,143.97,143.92,3.4738]
[1727118012486,15.01,143.97,143.93,3.4736]
[1727118012685,15.01,143.97,143.88,15.01]
[1727118012872,15.01,143.97,143.89,1.3326]
[1727118013077,15.01,143.97,143.94,3.4734]
[1727118013278,15.01,143.99,143.9,15.01]
[1727118013580,15.01,143.99,143.9,16.4582]
[1727118013778,15.01,143.99,143.94,3.4733]
[1727118014283,15.01,143.97,143.93,3.4736]
[1727118016179,15.01,143.97,143.94,3.4733]
[1727118016579,15.01,143.97,143.9,16.4582]
[1727118016983,15.01,143.95,143.87,6.9499]
[1727118017290,15.01,143.99,143.9,15.01]
[1727118017477,15.01,144.01,143.92,15.01]
[1727118017682,15.01,144.01,143.93,1.322]
[1727118017990,15.01,144.07,143.97,15.01]
[1727118018186,15.01,144.07,143.99,15.01]
[1727118018385,18.56776432,144.07,143.99,15.01]
[1727118018589,15.01,144.07,143.99,15.01]
[1727118018891,18.40162409,144.07,144.02,3.4713]
[1727118019192,15.01,144.07,144.02,3.4713]
[1727118019786,15.01,144.07,144.01,3.4716]
[1727118020181,15.01,144.07,143.97,15.01]
[1727118020392,15.01,144.09,144.0,15.01]
[1727118021184,15.01,144.11,144.01,4.2319]
[1727118021491,15.01,144.09,144.01,4.2319]
[1727118022381,15.01,144.09,144.03,3.4711]
[1727118023184,3.38995414,144.08,144.03,3.4711]
[1727118024187,3.38995414,144.08,144.04,3.471]
[1727118024586,3.38995414,144.08,144.01,4.2319]
[1727118024884,15.01,144.07,144.02,3.4714]
[1727118025089,15.01,144.05,143.97,15.01]
[1727118025284,15.01,144.09,143.96,4.2243]
[1727118025285,15.01,144.04,143.96,4.2243]
[1727118025485,15.01,144.02,143.96,4.2243]
[1727118025788,15.01,144.02,143.96,2.7654]
[1727118025984,15.01,144.02,143.97,3.4725]
[1727118026988,15.01,144.02,143.99,3.4722]
[1727118027291,15.01,144.02,143.96,2.7654]
[1727118027795,15.01,144.02,143.98,3.4723]
[1727118029290,15.01,144.02,143.99,3.4722]
[1727118030794,15.01,144.03,143.99,3.4722]
[1727118030993,15.01,144.03,144.0,3.472]
[1727118032293,15.01,144.03,143.99,3.4722]
[1727118038696,15.01,144.03,144.0,3.4719]
[1727118038902,15.01,144.03,143.96,2.7654]
[1727118041192,15.01,144.03,143.99,3.4721]
[1727118042300,15.01,144.03,143.96,2.7654]
[1727118042301,15.01,144.03,144.0,3.472]
[1727118042997,15.01,144.03,143.99,3.4721]
[1727118043397,15.01,144.03,143.96,2.7654]
[1727118043791,15.01,144.01,143.96,2.7654]
[1727118044086,15.01,144.01,143.97,3.4727]
[1727118044492,15.01,144.01,143.96,2.7654]
[1727118044801,15.01,144.01,143.93,1.4589]
[1727118045503,15.01,144.01,143.96,3.4728]
[1727118046092,15.01,144.01,143.97,3.4727]
[1727118046900,15.01,144.03,143.95,15.01]
[1727118047290,15.01,144.03,143.97,3.4726]
[1727118050399,9.61,144.0,143.98,3.4724]
[1727118050603,9.61,144.02,143.98,9.61]
[1727118051105,9.61,144.02,143.99,3.4721]
[1727118051907,9.61,144.01,143.99,3.4721]
[1727118052108,9.61,144.01,143.98,3.4724]
[1727118052407,15.01,144.03,143.98,3.4724]
[1727118054107,15.01,143.99,143.93,1.4589]
[1727118054417,15.01,143.97,143.89,17.736]
[1727118055911,15.01,143.97,143.93,3.4735]
[1727118057509,15.01,143.97,143.94,3.4734]
[1727118058415,15.01,143.97,143.93,3.4735]
[1727118059110,15.01,143.97,143.92,3.4738]
[1727118059611,15.01,143.97,143.91,3.4741]
[1727118060313,15.01,143.97,143.92,3.4739]
[1727118060712,4.1314,143.99,143.74,230.0]
[1727118060925,15.01,143.93,143.84,4.2985]
[1727118061106,15.01,143.93,143.84,7.75950517]
[1727118061712,15.01,143.93,143.84,4.2985]
[1727118062013,15.01,143.94,143.85,15.01]
[1727118063312,3.4741,143.92,143.87,3.475]
[1727118063516,3.4741,143.92,143.85,15.01]
[1727118063912,15.01,143.94,143.89,3.4745]
[1727118064114,15.01,143.94,143.85,15.01]
[1727118064617,3.4744,143.91,143.85,15.01]
[1727118065520,3.4744,143.91,143.88,3.4749]
[1727118067516,15.01,143.93,143.88,3.4749]
[1727118067724,15.01,143.93,143.89,3.4746]
[1727118068320,3.474,143.92,143.89,3.4746]
[1727118070019,3.4742,143.91,143.88,3.4748]
[1727118072629,3.4742,143.91,143.82,3.4025244]
[1727118072630,15.01,143.9,143.85,3.4754]
[1727118072829,15.01,143.9,143.81,2.7954]
[1727118073026,15.01,143.88,143.81,2.7954]
[1727118073720,3.4756,143.86,143.81,2.7954]
[1727118074330,13.0856,143.86,143.81,12.4054]
[1727118074726,13.0856,143.86,143.83,3.4761]
[1727118075428,9.61,143.84,143.74,3.53329045]
[1727118075727,2.8136,143.92,143.8,9.61]
[1727118075937,9.61,143.85,143.8,9.61]
[1727118076434,3.4759,143.84,143.77,15.03]
[1727118076634,15.03,143.86,143.77,15.03]
[1727118077024,3.4762,143.83,143.8,3.4767]
[1727118077431,18.42954869,143.86,143.8,3.4767]
[1727118077631,15.03,143.86,143.77,15.03]
[1727118077830,15.03,143.86,143.78,4.2247]
[1727118078537,15.03,143.86,143.82,3.4763]
[1727118078735,15.03,143.88,143.82,3.4763]
[1727118078937,18.51973913,143.88,143.82,3.4763]
[1727118079536,18.51973913,143.88,143.79,15.03]
[1727118079828,3.4756,143.86,143.82,3.4762]
[1727118080030,18.51973913,143.88,143.82,3.4762]
[1727118080234,18.51973913,143.88,143.79,15.03]
[1727118080435,3.4758,143.85,143.81,3.4765]
[1727118080624,15.03,143.86,143.81,3.4765]
[1727118080934,3.476,143.84,143.81,3.4765]
[1727118082227,3.476,143.84,143.7,3.42285233]
[1727118082228,15.03,143.82,143.68,6.9595]
[1727118082537,15.03,143.79,143.7,17.7534]
[1727118082832,15.03,143.81,143.72,15.03]
[1727118083136,2.7103,143.83,143.72,15.03]
[1727118083444,3.4765,143.82,143.78,3.4771]
[1727118083823,15.03,143.79,143.7,17.7534]
[1727118084030,15.03,143.79,143.7,1.3252]
[1727118084229,15.03,143.79,143.76,3.4778]
[1727118084731,15.03,143.79,143.77,3.4775]
[1727118085031,18.5066,143.81,143.73,15.03]
[1727118085232,18.5062,143.83,143.79,3.477]
[1727118087627,16.3614,143.85,143.75,15.03]
[1727118087828,16.3614,143.85,143.76,19.2268]
[1727118087829,15.03,143.85,143.76,19.2268]
[1727118088336,18.5058,143.85,143.81,3.4764]
[1727118088634,3.4758,143.85,143.81,3.4764]
[1727118089036,3.4758,143.85,143.76,19.2268]
[1727118089037,3.4752,143.87,143.83,3.476]
[1727118090832,3.40697905,143.9,143.81,15.03]
[1727118090833,15.03,143.9,143.81,15.03]
[1727118091425,3.4749,143.88,143.84,3.4757]
[1727118092826,3.4752,143.87,143.84,3.4757]
[1727118093031,15.03,143.88,143.83,3.476]
[1727118093636,3.4753,143.87,143.83,3.476]
[1727118094031,3.4753,143.87,143.79,15.03]
[1727118094032,3.4753,143.87,143.84,3.4759]
[1727118095040,15.03,143.88,143.79,15.03]
[1727118095041,3.4754,143.86,143.83,3.476]
[1727118099142,15.03,143.86,143.77,15.03]
[1727118099346,4.82890596,143.91,143.76,4.1968]
[1727118099347,15.03,143.84,143.76,4.1968]
[1727118099537,4.82890596,143.91,143.76,4.1968]
[1727118099538,3.4765,143.82,143.76,4.1968]
[1727118100341,3.4765,143.82,143.78,3.4772]
[1727118101133,3.4766,143.81,143.78,3.4772]
[1727118102436,18.5062,143.83,143.79,3.4769]
[1727118102642,15.03,143.85,143.76,4.1968]
[1727118103037,3.4761,143.83,143.79,3.4769]
[1727118103337,15.03,143.85,143.79,3.4769]
[1727118103537,3.4763,143.83,143.79,3.4769]
[1727118105252,3.4764,143.82,143.79,3.4769]
[1727118105545,15.03,143.83,143.76,4.1968]
[1727118105955,3.4767,143.81,143.77,3.4774]
[1727118106743,15.03,143.81,143.73,15.03]
[1727118106942,18.5385583,143.81,143.71,19.2399]
[1727118107250,3.4776,143.77,143.73,3.4783]
[1727118107446,3.4776,143.77,143.71,19.2399]
[1727118107949,3.4776,143.77,143.74,3.4782]
[1727118108345,15.03,143.79,143.71,19.2399]
[1727118109043,15.03,143.79,143.74,3.4781]
[1727118109942,3.4775,143.78,143.75,3.478]
[1727118110141,15.03,143.79,143.71,19.2399]
[1727118110355,15.03,143.81,143.73,15.03]
[1727118110557,3.4771,143.79,143.76,3.4776]
[1727118111749,15.03,143.81,143.73,15.03]
[1727118111947,3.4765,143.82,143.75,15.03]
[1727118112457,3.4767,143.81,143.77,3.4773]
[1727118113051,3.48332985,143.82,143.77,3.4773]
[1727118113644,3.4769,143.8,143.77,3.4773]
[1727118113853,15.03,143.83,143.78,3.4773]
[1727118114351,18.57144915,143.83,143.78,3.4773]
[1727118114553,3.4768,143.81,143.78,3.4773]
[1727118115053,3.4768,143.81,143.77,3.4774]
[1727118115446,3.4769,143.8,143.77,3.4774]
[1727118119153,15.03,143.83,143.75,15.03]
[1727118119654,18.45553931,143.83,143.75,15.03]
[1727118120457,18.45553931,143.83,143.76,1.3336]
[1727118120656,15.03,143.83,143.76,1.3336]
[1727118120852,2.7359,143.85,143.76,16.3636]
[1727118120853,15.03,143.85,143.76,16.3636]
[1727118121050,15.03,143.85,143.77,2.7676]
[1727118121362,3.4765,143.82,143.77,2.7676]
[1727118121861,3.4765,143.82,143.79,3.477]
[1727118124355,3.4767,143.81,143.78,3.4773]
[1727118125756,3.4764,143.82,143.77,2.7676]
[1727118125963,15.03,143.85,143.77,2.7676]
[1727118126357,3.476,143.84,143.81,3.4764]
[1727118128168,18.5057,143.85,143.82,3.4763]
[1727118128361,3.4757,143.85,143.82,3.4763]
[1727118128751,3.4755,143.86,143.78,15.03]
[1727118128952,15.03,143.87,143.79,15.03]
[1727118129362,3.4754,143.86,143.79,15.03]
[1727118129968,3.4754,143.86,143.83,3.476]
[1727118133863,3.4753,143.87,143.84,3.4758]
[1727118134259,13.0853,143.87,143.84,3.4758]
[1727118135267,6.9472,143.94,143.83,9.61]
[1727118135465,9.61,143.88,143.83,9.61]
[1727118136471,13.0851,143.88,143.84,3.4757]
[1727118136869,9.61,143.87,143.84,3.4757]
[1727118137170,9.61,143.87,143.85,3.4755]
[1727118137366,9.61,143.87,143.78,6.9546]
[1727118137565,9.61,143.83,143.77,2.7676]
[1727118137766,9.61,143.83,143.78,9.61]
[1727118138471,9.61,143.82,143.77,12.3776]
[1727118138967,9.61,143.83,143.78,9.61]
[1727118139170,9.61,143.83,143.79,9.61]
[1727118139367,9.61,143.84,143.8,9.61]
[1727118139966,9.61,143.84,143.82,3.4762]
[1727118140472,9.61,143.84,143.8,9.61]
[1727118140670,9.61,143.84,143.82,3.4762]
[1727118142674,9.61,143.84,143.83,3.4761]
[1727118143171,13.0858,143.85,143.83,3.4761]
[1727118144076,9.61,143.86,143.82,9.61]
[1727118144274,9.61,143.87,143.82,9.61]
[1727118144468,9.61,143.87,143.85,3.4754]
[1727118144771,9.61,143.87,143.82,9.61]
[1727118144978,9.61,143.87,143.83,9.61]
[1727118145569,9.61,143.87,143.85,3.4755]
[1727118145874,13.0849,143.88,143.83,9.61]
[1727118146470,13.0849,143.88,143.85,3.4755]
[1727118149277,9.61,143.88,143.86,3.4753]
[1727118149676,9.61,143.88,143.83,9.61]
[1727118149875,13.0849,143.88,143.85,3.4755]
[1727118150977,13.0849,143.88,143.86,3.4754]
[1727118150978,9.61,143.88,143.86,3.4754]
[1727118151172,83.48,143.95,143.86,9.61]
[1727118151373,9.61,143.91,143.86,9.61]
[1727118151580,9.61,143.91,143.89,3.4746]
[1727118152086,9.61,143.91,143.86,9.61]
[1727118152576,9.61,143.91,143.87,3.4749]
[1727118152777,9.61,143.91,143.86,9.61]
[1727118153884,13.0844,143.91,143.87,3.475]
[1727118154078,13.0844,143.91,143.86,9.61]
[1727118154378,9.61,143.91,143.87,9.61]
[1727118155779,13.0842,143.91,143.88,3.4747]
[1727118155980,9.61,143.91,143.87,9.61]
[1727118156589,13.0843,143.91,143.88,3.4749]
[1727118157785,13.084,143.92,143.89,3.4746]
[1727118157986,13.084,143.92,143.87,9.61]
[1727118157987,9.61,143.92,143.87,9.61]
[1727118158382,9.61,143.92,143.88,9.61]
[1727118158988,9.61,143.92,143.89,3.4745]
[1727118158989,3.474,143.92,143.89,3.4745]
[1727118159386,13.084,143.92,143.89,3.4745]
[1727118159588,3.4743,143.91,143.88,3.4748]
[1727118161785,13.084,143.92,143.89,3.4746]
[1727118162588,13.0838,143.93,143.9,3.4744]
[1727118162887,13.0838,143.93,143.9,9.61]
[1727118162888,9.61,143.93,143.9,9.61]
[1727118163092,13.0833,143.95,143.92,3.4738]
[1727118165483,3.4733,143.95,143.92,3.4738]
[1727118166386,9.61,143.94,143.92,3.4738]
[1727118167095,13.0835,143.94,143.92,3.4738]
[1727118168089,13.0835,143.94,143.91,13.0841]
[1727118169597,13.0835,143.94,143.91,3.4741]
[1727118172395,3.4737,143.93,143.9,3.4744]
[1727118172590,9.61,143.92,143.87,2.7402]
[1727118172791,9.61,143.92,143.86,11.0378]
[1727118173602,9.61,143.9,143.86,1.4278]
[1727118173995,13.0845,143.9,143.87,3.4749]
[1727118174203,13.0845,143.9,143.86,1.4278]
[1727118174703,3.4747,143.89,143.87,3.475]
[1727118176602,13.0845,143.9,143.88,3.4749]
[1727118177200,3.4745,143.9,143.88,3.4749]
[1727118178212,3.4742,143.91,143.89,3.4746]
[1727118178694,3.4742,143.91,143.88,13.0848]
[1727118179905,3.4742,143.91,143.88,3.4748]
[1727118182307,9.61,143.93,143.89,9.61]
[1727118182510,9.61,143.94,143.89,9.61]
[1727118182801,3.4741,143.92,143.89,13.0845]
[1727118183512,9.61,143.9,143.86,11.0378]
[1727118184705,9.61,143.9,143.87,3.4751]
[1727118185408,9.61,143.89,143.82,2.7539]
[1727118185614,9.61,143.85,143.82,2.7539]
[1727118185798,13.0858,143.85,143.8,91.33366665]
[1727118186107,13.0858,143.85,143.81,3.4765]
[1727118186500,13.0858,143.85,143.82,3.4763]
[1727118187204,3.4759,143.84,143.81,3.4765]
[1727118187603,13.0859,143.84,143.81,3.4765]
[1727118188200,3.4759,143.84,143.81,3.4765]
[1727118188406,3.4759,143.84,143.8,9.61]
[1727118188407,3.4759,143.84,143.82,3.4763]
[1727118188699,9.61,143.85,143.78,4.2969]
[1727118188901,9.61,143.85,143.79,9.61]
[1727118189211,9.61,143.85,143.81,3.4764]
[1727118189602,3.4761,143.84,143.81,3.4764]
[1727118190517,13.0861,143.84,143.81,3.4764]
[1727118192013,9.61,143.85,143.81,9.61]
[1727118192308,9.61,143.86,143.82,9.61]
[1727118192512,9.61,143.86,143.84,3.4757]
[1727118196023,9.61,143.88,143.84,9.61]
[1727118196206,9.61,143.89,143.84,9.61]
[1727118196406,16.55978898,143.89,143.85,3.4755]
[1727118197013,9.61,143.88,143.85,3.4755]
[1727118197314,13.0849,143.88,143.85,3.4755]
[1727118198501,13.0851,143.88,143.83,9.61]
[1727118198711,9.61,143.87,143.84,3.4757]
[1727118199211,13.0852,143.87,143.84,3.4757]
[1727118204116,9.61,143.87,143.85,3.4756]
[1727118206309,9.61,143.9,143.85,9.61]
[1727118206620,9.61,143.9,143.86,9.61]
[1727118207118,3.4745,143.9,143.87,3.475]
[1727118207508,13.12116366,143.91,143.86,9.61]
[1727118207713,3.4744,143.9,143.87,3.475]
[1727118209922,9.61,143.95,143.89,9.61]
[1727118210315,13.0839,143.93,143.89,3.4746]
[1727118210516,9.61,143.93,143.89,3.4746]
[1727118212921,13.0838,143.93,143.89,3.4746]
[1727118213125,9.61,143.96,143.91,9.61]
[1727118213425,9.61,143.96,143.87,1.3882]
[1727118213426,13.0831,143.96,143.92,9.61]
[1727118213917,16.52861839,143.96,143.92,13.0838]
[1727118214124,3.4731,143.96,143.92,9.61]
[1727118214325,13.69324585,144.01,143.95,9.61]
[1727118214526,13.69324585,144.01,143.97,9.61]
[1727118214527,9.61,144.01,143.97,9.61]
[1727118214727,3.43782581,144.0,143.97,9.61]
[1727118215122,3.43782581,144.0,143.98,3.4723]
[1727118215327,3.43782581,144.0,143.97,9.61]
[1727118216028,3.43782581,144.0,143.97,13.0826]
[1727118216230,1.4112,144.08,143.97,9.61]
[1727118216528,1.4112,144.08,143.99,9.61]
[1727118216732,9.61,144.05,143.99,9.61]
[1727118216919,9.61,144.05,144.0,9.61]
[1727118217123,13.0809,144.05,144.01,3.4717]
[1727118217630,9.61,144.03,144.0,3.472]
[1727118217827,9.61,144.03,143.98,9.61]
[1727118218234,13.0814,144.03,143.99,3.4721]
[1727118218728,9.61,144.01,143.95,4.3241]
[1727118219033,9.61,144.01,143.96,9.61]
[1727118219236,9.61,144.01,143.98,3.4724]
[1727118221128,13.0817,144.02,143.98,3.4724]
[1727118223223,3.4718,144.01,143.97,13.0827]
[1727118224730,3.4718,144.01,143.98,3.4725]
[1727118225539,3.4718,144.01,143.97,13.0826]
[1727118226438,3.4718,144.01,143.95,4.3241]
[1727118226439,9.61,144.0,143.95,13.9341]
[1727118227835,3.4724,143.99,143.96,3.4729]
[1727118232338,3.4724,143.99,143.97,9.61]
[1727118234945,9.61,143.98,143.88,6.9495]
[1727118235143,9.61,143.96,143.92,9.61]
[1727118235445,3.4734,143.95,143.91,13.0841]
[1727118235943,3.4735,143.94,143.91,13.0841]
[1727118236849,3.4735,143.94,143.92,3.4739]
[1727118238754,3.4735,143.94,143.92,13.0839]
[1727118241449,3.4731,143.96,143.93,9.61]
[1727118241643,3.4731,143.96,143.94,9.61]
[1727118243449,3.4728,143.97,143.94,13.0834]
[1727118244152,13.0826,143.98,143.95,3.4732]
[1727118244347,3.4726,143.98,143.95,13.0832]
[1727118245154,3.4724,143.99,143.96,13.0829]
[1727118250849,9.61,143.98,143.89,4.0971]
[1727118251054,9.61,143.98,143.94,9.61]
[1727118251463,13.0827,143.98,143.94,13.0833]
[1727118252663,3.4727,143.98,143.95,9.61]
[1727118253362,3.4727,143.98,143.95,13.0832]
[1727118254161,3.4723,143.99,143.96,3.4729]
[1727118254759,3.4725,143.98,143.95,13.0831]
[1727118254958,13.0825,143.98,143.95,13.0831]
[1727118255450,3.4727,143.97,143.95,13.0831]
[1727118255653,9.61,143.98,143.95,13.0831]
[1727118256460,13.0826,143.98,143.95,13.0831]
[1727118257563,3.4727,143.97,143.95,3.4731]
[1727118258161,3.473,143.96,143.89,4.0971]
[1727118258356,9.61,143.94,143.9,9.61]
[1727118258555,9.61,143.94,143.9,3.4743]
[1727118258752,3.4739,143.93,143.9,3.4743]
[1727118258960,9.61,143.93,143.89,4.0971]
[1727118259158,9.61,143.93,143.87,9.61]
[1727118259468,3.4744,143.9,143.86,9.61]
[1727118259669,3.4744,143.9,143.87,3.4749]
[1727118259966,3.4743,143.91,143.86,9.61]
[1727118260167,9.61,143.94,143.9,3.4744]
[1727118260660,3.4738,143.93,143.9,13.0844]
[1727118260868,9.61,143.94,143.91,3.4742]
[1727118261157,9.61,143.95,143.91,9.61]
[1727118262260,13.0833,143.95,143.91,13.0841]
[1727118262762,9.61,143.94,143.9,13.0843]
[1727118263065,9.61,143.93,143.88,9.61]
[1727118263462,13.0837,143.93,143.9,3.4743]
[1727118264165,13.0835,143.94,143.91,3.4742]
[1727118264854,13.0835,143.94,143.9,3.4743]
[1727118266057,13.0835,143.94,143.89,9.61]
[1727118266263,3.4735,143.94,143.91,3.4741]
[1727118267768,13.0838,143.93,143.84,2.7836]
[1727118267955,13.0838,143.93,143.89,9.61]
[1727118268669,3.4739,143.92,143.89,13.0845]
[1727118268869,9.61,143.93,143.89,13.0845]
[1727118269171,13.0838,143.93,143.9,3.4743]
[1727118270478,13.084,143.92,143.89,3.4745]
[1727118270665,9.61,143.9,143.85,9.61]
[1727118271172,9.61,143.9,143.86,3.4753]
[1727118271173,13.0845,143.9,143.86,3.4753]
[1727118271368,13.0845,143.9,143.85,9.61]
[1727118273774,13.0845,143.9,143.87,3.475]
[1727118273973,3.4745,143.9,143.87,9.61]
[1727118274974,3.4745,143.9,143.88,3.4748]
[1727118275971,6.30515552,144.0,143.89,9.61]
[1727118276167,9.61,143.95,143.9,9.61]
[1727118276367,9.61,143.94,143.89,9.61]
[1727118276567,3.4738,143.93,143.89,13.0844]
[1727118277578,3.4738,143.93,143.9,3.4744]
[1727118283184,13.0838,143.93,143.9,3.4744]
[1727118284388,9.61,143.91,143.84,2.7836]
[1727118284674,9.61,143.88,143.84,2.7836]
[1727118284880,9.61,143.88,143.85,3.4755]
[1727118285278,3.4752,143.87,143.84,6.2595]
[1727118285484,13.0852,143.87,143.83,1.4592]
[1727118285882,13.0852,143.87,143.84,3.4758]
[1727118287079,9.61,143.87,143.84,3.4758]
[1727118287278,9.61,143.88,143.85,3.4756]
[1727118287878,13.0851,143.88,143.85,3.4756]
[1727118289988,9.61,143.88,143.85,3.4756]
[1727118293797,13.0848,143.89,143.86,3.4752]
[1727118294094,9.61,143.89,143.84,9.61]
[1727118294288,9.61,143.89,143.86,3.4752]
[1727118294492,13.0848,143.89,143.86,3.4752]
[1727118294693,9.61,143.88,143.83,11.0692]
[1727118294892,13.0849,143.88,143.85,3.4755]
[1727118297589,9.61,143.87,143.85,3.4755]
[1727118299509,13.0852,143.87,143.85,3.4755]
[1727118299802,13.0852,143.87,143.84,3.4758]
[1727118300198,9.61,143.89,143.84,9.61]
[1727118300906,13.15568796,143.89,143.84,9.61]
[1727118301102,3.475,143.88,143.85,3.4755]
[1727118301403,9.61,143.87,143.83,1.4592]
[1727118301996,13.0851,143.87,143.84,3.4757]
[1727118302604,9.61,143.87,143.85,3.4755]
[1727118303304,13.085,143.88,143.83,11.0692]
[1727118303894,13.085,143.88,143.83,1.4592]
[1727118304207,9.61,143.86,143.83,1.4592]
[1727118304601,13.0855,143.86,143.84,3.4757]
[1727118305007,9.61,143.87,143.84,3.4757]
[1727118305306,13.0852,143.87,143.85,3.4756]
[1727118305500,13.0852,143.87,143.83,1.4592]
[1727118306401,13.0852,143.87,143.84,3.4757]
[1727118306602,3.4754,143.86,143.84,3.4757]
[1727118306807,9.61,143.85,143.8,2.7292]
[1727118307008,9.61,143.85,143.67,348.4396]
[1727118307009,9.61,143.82,143.77,9.61]
[1727118308104,9.61,143.82,143.8,3.4766]
[1727118308307,9.61,143.84,143.79,9.61]
[1727118308811,9.61,143.84,143.81,3.4765]